Cogmind - Beta 11 X10 @@@ ROGUE MODE // 2022.02.05 @ 06:32:51 Player: gammafunk Result: Self-destructed Performance ------------- Evolutions (1) 500 Regions Visited (4) 800 Robots Destroyed (62) 310 Value Destroyed (1394) 1394 Prototype IDs (5) 100 Alien Tech Used (0) 0 Bonus (0) 0 TOTAL SCORE: 3104 Bonus ------- None Cogmind --------- Core Integrity 314/400 Matter 242/300 Energy 265/265 System Corruption 0% Temperature Cool (19) Movement Treading (160) Location -9/Mines Parts ------- > --- POWER (1) -------- Improved Ion Engine > --- PROPULSION (3) --- Light Treads Light Treads Light Treads > --- UTILITY (2) ------ Large Storage Unit Hardened Light Armor Plating > --- WEAPON (3) ------- Heavy Assault Rifle Improved Assault Rifle Improved Assault Rifle > --- INVENTORY (15) --- Improved Ion Engine Light Treads Light Treads Light Treads Huge Storage Unit High-capacity Matter Pod (200) Hardened Light Armor Plating Hardened Light Armor Plating Light Assault Rifle Light Assault Rifle Light Assault Rifle Heavy Assault Rifle Heavy Assault Rifle Grenade Launcher Maul Peak State ------------ > --- POWER ------------ Improved Ion Engine > --- PROPULSION ------- Light Treads Light Treads Light Treads > --- UTILITY ---------- Large Storage Unit Hardened Light Armor Plating > --- WEAPON ----------- Heavy Assault Rifle Improved Assault Rifle Improved Assault Rifle > --- INVENTORY -------- Light Treads Light Treads Light Treads Huge Storage Unit High-capacity Matter Pod Hardened Light Armor Plating Hardened Light Armor Plating Assault Rifle Light Assault Rifle Light Assault Rifle Light Assault Rifle Heavy Assault Rifle Improved Assault Rifle Grenade Launcher Maul [Rating: 18] Favorites ----------- Power Ion Engine Engine Ion Engine Propulsion Light Treads Treads Light Treads Leg Improved Aluminum Leg Utility Large Storage Unit Device Improved Terrain Scanner Storage Large Storage Unit Protection Hardened Light Armor Plating Weapon Assault Rifle Energy Gun Medium Laser Ballistic Gun Assault Rifle Launcher Grenade Launcher Impact Weapon Maul Build | -11 -10 -10 -9 -9 ------- Run | Scr Mat Min Mat Min Slots Evolved 2 | . . . 2 . Power . | . . . . . Propulsion 1 | . . . 1 . Utility . | . . . . . Weapon 1 | . . . 1 . Parts Attached 69 | 9 25 2 31 2 Power 5 | 1 1 . 3 . Engine 5 | 1 1 . 3 . Core . | . . . . . Reactor . | . . . . . Propulsion 27 | 4 8 . 15 . Treads 21 | 2 4 . 15 . Leg 6 | 2 4 . . . Wheel . | . . . . . Hover . | . . . . . Flight . | . . . . . Utility 6 | 2 2 . 2 . Device 1 | 1 . . . . Storage 2 | 1 1 . . . Processor . | . . . . . Hackware . | . . . . . Protection 3 | . 1 . 2 . Artifact . | . . . . . Weapon 31 | 2 14 2 11 2 Energy Gun 2 | 2 . . . . Energy Cannon . | . . . . . Ballistic Gun 24 | . 10 2 11 1 Ballistic Cannon . | . . . . . Launcher 1 | . . . . 1 Special Weapon . | . . . . . Impact Weapon 4 | . 4 . . . Slashing Weapon . | . . . . . Piercing Weapon . | . . . . . Special Melee Weapon . | . . . . . Unidentified Prototypes . | . . . . . Parts Lost 1 | . 1 . . . Power . | . . . . . Propulsion 1 | . 1 . . . Utility . | . . . . . Weapon . | . . . . . Highest Loss Streak 1 | . 1 . . . To Critical Strikes . | . . . . . Average Slot Usage (%) 99 | . 99 100 99 100 Engine 12 | . 14 14 10 11 Treads 27 | . 18 28 33 33 Leg 3 | . 9 . . . Device 1 | . 3 . . . Storage 12 | . 14 14 11 11 Protection 11 | . 10 14 11 11 Energy Gun 3 | . 9 . . . Ballistic Gun 26 | . 15 28 32 29 Naked Turns . | . . . . . Heaviest Build 41 | 14 31 30 41 41 Greatest Support 60 | 40 40 40 60 60 Greatest Overweight (x) . | . . . . . Average Overweight (x) . | . . . . . Largest Inventory Capacity 15 | 8 15 15 15 15 Average Capacity 13 | 6 12 15 15 15 Most Carried 15 | 4 11 13 15 15 Average Carried 12 | 2 9 12 14 15 Final Capacity 15 | 8 15 15 15 15 Final Carried 15 | 4 11 13 15 15 Class Distribution -------------------- 49% | Mutant 35% | Scavenger-Tank 14% | Tank Dominant Class ---------------- Mutant | -10/Materials Mutant | -10/Mines Scavenger-Tank | -9/Materials Scavenger-Tank | -9/Mines Resources | -11 -10 -10 -9 -9 ----------- Run | Scr Mat Min Mat Min Matter Collected 1678 | 204 366 96 1012 . Remotely . | . . . . . Salvage Created 2290 | 26 657 39 1515 53 Parts 139 | 2 34 3 100 . Haulers Intercepted 8 | . 2 . 6 . Recyclers Shooed 1 | . 1 . . . Parts Field Recycled . | . . . . . Retrieved Matter . | . . . . . Parts Self-Destructed . | . . . . . Prevented . | . . . . . Kills | -11 -10 -10 -9 -9 ------- Run | Scr Mat Min Mat Min Combat Hostiles Destroyed 50 | . 14 3 23 10 Guns 40 | . 14 3 23 . AOE 10 | . . . . 10 Classes Destroyed 10 | 1 5 . 3 1 Worker 2 | . . . 2 . Builder 1 | . . . 1 . Tunneler 1 | 1 . . . . Hauler 8 | . 2 . 6 . Recycler 3 | . 2 . 1 . Watcher 7 | . 2 . 5 . Swarmer 12 | . 6 3 3 . Grunt 21 | . 8 . 13 . Sentry 7 | . . . 7 . Assembled 10 | . . . . 10 Best Kill Streak 10 | 1 4 3 3 10 Combat Bots Only 10 | . 3 3 3 10 Max Kills in Single Turn 6 | 1 2 1 1 6 Gunslinging 1 | . 1 . . . Exploded 6 | . . . . 6 Melee . | . . . . . Uniques/NPCs Destroyed . | . . . . . Combat | -11 -10 -10 -9 -9 -------- Run | Scr Mat Min Mat Min Damage Taken 1743 | . 550 57 862 274 Core 197 | . 105 6 65 21 Absorbed by Shields . | . . . . . Redirected to Shielding 5 | . 4 1 . . Regen/Repaired (Parts) 72 | . . . 72 . Core Remaining (%) 77 | 100 . 55 . . Volleys Fired 154 | 6 53 5 86 4 Largest 3 | 2 2 2 3 3 Hottest 90 | 90 90 40 69 69 Shots Fired 392 | 12 104 10 258 8 Gun 390 | 12 104 10 258 6 Cannon . | . . . . . Launcher 2 | . . . . 2 Special . | . . . . . Kinetic 311 | . 37 10 258 6 Thermal 79 | 12 67 . . . Explosive 2 | . . . . 2 Electromagnetic . | . . . . . Robot Hit Streak 15 | 5 13 8 15 5 Robot Miss Streak 3 | 2 2 2 3 1 Penetration Max . | . . . . . Secondary Targets 3 | . 2 . 1 . Max Gunslinging Chain 1 | . 1 . 1 . Shots Hit Robots 258 | 9 69 6 170 4 Core Hits 120 | 2 31 3 64 20 Critical Kills 1 | . . . 1 . Critical Parts Destroyed 2 | . 1 . 1 . Critical Strikes 7 | . 5 . 2 . Burn 4 | . 4 . . . Destroy 3 | . 1 . 2 . Melee Attacks 9 | . 9 . . . Impact 9 | . 9 . . . Slashing . | . . . . . Piercing . | . . . . . Sneak Attacks 2 | . 2 . . . Combat Hostiles . | . . . . . Follow-up Attacks . | . . . . . Damage Inflicted 4132 | 123 1113 107 2261 528 Guns 3298 | 117 796 85 2246 54 Cannons . | . . . . . Explosions 474 | . . . . 474 Melee 315 | . 315 . . . Ramming 45 | 6 2 22 15 . Kinetic 2693 | . 308 85 2246 54 Thermal 605 | 117 488 . . . Explosive 474 | . . . . 474 Electromagnetic . | . . . . . Impact 315 | . 315 . . . Slashing . | . . . . . Piercing . | . . . . . Highest Corruption . | . . . . . Average Corruption . | . . . . . Corruption Purged . | . . . . . Corruption Blocked . | . . . . . Overload Shots . | . . . . . Overflow Damage 3 | . . . . 3 Projectiles . | . . . . . Explosions 3 | . . . . 3 Melee . | . . . . . Knockbacks . | . . . . . Impact . | . . . . . Kinetic . | . . . . . Secondary . | . . . . . Self-Inflicted Damage . | . . . . . Shots . | . . . . . Rammed 5 | . . 2 3 . Targets Rammed 9 | 1 2 2 4 . Kicked 3 | 1 2 . . . Crushed 1 | . . . 1 . Highest Temperature 225 | 180 225 6 147 19 Average Temperature 47 | 92 67 6 34 10 Received Heat Transfer 639 | . 231 . 408 . Siege Activations . | . . . . . Robots Corrupted . | . . . . . Combat Hostiles . | . . . . . Parts Fried . | . . . . . Impact Corruptions . | . . . . . Robots Melted . | . . . . . Combat Hostiles . | . . . . . Parts Melted 1 | . 1 . . . Heat Transferred 1883 | 322 1561 . . . Parts Sabotaged . | . . . . . Parts Stolen . | . . . . . Parts Stripped . | . . . . . Power Chain Reactions . | . . . . . Missiles Intercepted . | . . . . . Alert | -11 -10 -10 -9 -9 ------- Run | Scr Mat Min Mat Min Peak Influence 356 | 5 187 70 356 63 Initial 63 | . 3 . . 63 Average 111 | . 60 44 168 63 Maximum Alert Level 1 | . . . 1 . Low Security (%) 79 | 100 100 100 59 100 Level 1 20 | . . . 40 . Level 2 . | . . . . . Level 3 . | . . . . . Level 4 . | . . . . . Level 5 . | . . . . . High Security . | . . . . . Max Security . | . . . . . Squads Dispatched 3 | . 1 . 2 . Investigation 2 | . 1 . 1 . Extermination . | . . . . . Reinforcement 1 | . . . 1 . Assault . | . . . . . Garrison . | . . . . . Intercept . | . . . . . Construction Impeded . | . . . . . Haulers Reinforced . | . . . . . Active Scanning Responses . | . . . . . Cargo Convoy Interrupts . | . . . . . Stealth | -11 -10 -10 -9 -9 --------- Run | Scr Mat Min Mat Min Distress Signals 6 | . 1 . 5 . Communications Jammed . | . . . . . Distress Signals . | . . . . . Times Spotted 80 | . 21 2 38 19 Peak Tracking Total 17 | . 4 2 4 17 Tactical Retreats 1 | . 1 . . . Traps | -11 -10 -10 -9 -9 ------- Run | Scr Mat Min Mat Min Traps Triggered 6 | . 4 . 2 . Indirectly . | . . . . . Trap Hack Attempts . | . . . . . Triggered . | . . . . . Disarmed . | . . . . . Reprogrammed . | . . . . . Reused . | . . . . . Traps Extracted . | . . . . . Installed . | . . . . . Triggered . | . . . . . Machines | -11 -10 -10 -9 -9 ---------- Run | Scr Mat Min Mat Min Machines Disabled 2 | . . . 2 . Max in Single Turn 1 | . . . 1 . Machines Sabotaged . | . . . . . Garrisons Compromised . | . . . . . Overloaded Fab Kills . | . . . . . Hacking | -11 -10 -10 -9 -9 --------- Run | Scr Mat Min Mat Min Machines Accessed 20 | . 7 . 13 . Terminals 16 | . 7 . 9 . Fabricators . | . . . . . Repair Stations 2 | . . . 2 . Recycling Units . | . . . . . Scanalyzers 2 | . . . 2 . Garrison Access . | . . . . . Total Hacks 55 | . 17 . 38 . Successful 28 | . 8 . 20 . Failed 27 | . 9 . 18 . Catastrophic 2 | . . . 2 . Database Lockouts . | . . . . . Manual 32 | . 15 . 17 . Terminals 49 | . 17 . 32 . Fabricators . | . . . . . Repair Stations 3 | . . . 3 . Recycling Units . | . . . . . Scanalyzers 3 | . . . 3 . Garrison Access . | . . . . . Terminal Hacks 19 | . 6 . 13 . Robot Analysis 3 | . 2 . 1 . Prototype ID Bank 2 | . . . 2 . Alert Level 2 | . . . 2 . Unreport Threat 3 | . 1 . 2 . Locate Traps 3 | . 1 . 2 . Recall Investigation 1 | . . . 1 . Hauler Manifests 2 | . 1 . 1 . Registered Components 2 | . 1 . 1 . Zone Layout 1 | . . . 1 . Fabricator Hacks . | . . . . . Repair Station Hacks 2 | . . . 2 . Scan Component 1 | . . . 1 . Repair 1 | . . . 1 . Recycling Unit Hacks . | . . . . . Scanalyzer 3 | . . . 3 . Insert Component 3 | . . . 3 . Garrison Access Hacks . | . . . . . Unauthorized Hacks 4 | . 2 . 2 . Terminals 4 | . 2 . 2 . Botnet 4 | . 2 . 2 . Fabricators . | . . . . . Repair Stations . | . . . . . Recycling Units . | . . . . . Scanalyzers . | . . . . . Garrison Access . | . . . . . Data Cores Recovered . | . . . . . Used . | . . . . . Hacking Detections 20 | . 7 . 13 . Full Trace Events 2 | . . . 2 . Feedback Events . | . . . . . Feedback Blocked . | . . . . . Robot Schematics Acquired . | . . . . . Robots Built . | . . . . . Authchips . | . . . . . Time . | . . . . . Total Robot Build Rating . | . . . . . Part Schematics Acquired . | . . . . . Parts Built . | . . . . . Authchips . | . . . . . Time . | . . . . . Total Part Build Rating . | . . . . . Parts Repaired 1 | . . . 1 . Time 32 | . . . 32 . Parts Recycled . | . . . . . Recycled Matter . | . . . . . Retrieved Matter . | . . . . . Retrieved Components . | . . . . . Parts Scanalyzed . | . . . . . Part Schematics Acquired . | . . . . . Parts Damaged . | . . . . . Bothacking | -11 -10 -10 -9 -9 ------------ Run | Scr Mat Min Mat Min Used RIF Installer . | . . . . . Robots Hacked . | . . . . . Non-combat . | . . . . . Combat . | . . . . . Robot Hacks Applied . | . . . . . Relay Couplers Released . | . . . . . Fabnet Peak Effective % . | . . . . . Robots Rewired . | . . . . . Allies Hacked . | . . . . . Hacks Repelled . | . . . . . Allies | -11 -10 -10 -9 -9 -------- Run | Scr Mat Min Mat Min Total Allies . | . . . . . Largest Group . | . . . . . Highest-Rated Group . | . . . . . Highest-Rated Ally . | . . . . . Total Orders . | . . . . . Ally Attacks . | . . . . . Total Damage . | . . . . . Kills . | . . . . . Allies Corrupted . | . . . . . Allies Melted . | . . . . . Intel | -11 -10 -10 -9 -9 ------- Run | Scr Mat Min Mat Min Robot Analysis Total 3 | . 2 . 1 . Derelict Logs Recovered 1 | . . 1 . . Drone Launches . | . . . . . Drone Recoveries . | . . . . . Exploration | -11 -10 -10 -9 -9 ------------- Run | Scr Mat Min Mat Min Turns Passed 4463 | 110 1464 616 2246 27 Spaces Moved 2350 | 55 815 371 1101 8 Core 3 | 3 . . . . Treads 2026 | 25 521 371 1101 8 Legs 321 | 27 294 . . . Wheels . | . . . . . Hover . | . . . . . Flight . | . . . . . Fastest Speed 50 | 50 120 160 160 160 Average Speed 154 | 134 145 160 160 160 Slowest Speed 160 | 160 160 160 160 160 Overloaded Moves . | . . . . . Propulsion Burnouts . | . . . . . Robots Hopped . | . . . . . Cave-ins Triggered . | . . . . . Exploration Rate (%) 57 | 7 97 93 80 12 Regions Visited 4 Branch Regions 2 Pre-discovered Areas 1 | . . 1 . . Known Exits Taken . | . . . . . Unknown Exits Taken 4 | 1 1 1 1 . Scrap Searched 3 | . . 3 . . Spaces Dug 7 | . 7 . . . Terrain Destroyed 23 | . 7 . . 16 Melee 7 | . 7 . . . Projectile . | . . . . . AOE 16 | . . . . 16 Terrain Rammed . | . . . . . Walls Destroyed . | . . . . . Machines Disabled . | . . . . . Actions | -11 -10 -10 -9 -9 --------- Run | Scr Mat Min Mat Min Total 2850 | 74 967 382 1413 14 Wait 183 | . 44 . 139 . Move 2347 | 55 814 370 1100 8 Hop . | . . . . . Pick Up 35 | 4 10 2 19 . Fast Attach 17 | 7 5 . 5 . Attach 4 | . 1 . 3 . Detach 1 | . . . 1 . Swap 48 | 2 19 2 23 2 Drop 44 | . 10 1 33 . Fire 154 | 6 53 5 86 4 Melee 9 | . 9 . . . Ram . | . . . . . Kick 2 | . 2 . . . Crush 6 | . . 2 4 . Escape Stasis . | . . . . . Rewire . | . . . . . Trap . | . . . . . Miscellaneous . | . . . . . Route ------- -11/Scrapyard -10/Materials (discovered 5 exits: *Mat x3 / [*Min x2]) -10/Mines (discovered 2 exits: *Mat x2) -9/Materials (discovered 4 exits: [*Mat x3] / [*Min]) -9/Mines History --------- Turn | Location | Event 36 | -11/Scrapyard | Discovered new exit (range 16) 111 | -11/Scrapyard | Entered Materials 208 | -10/Materials | Discovered new exit (range 9) 302 | -10/Materials | Build established: Mutant 459 | -10/Materials | Discovered new exit (range 16) 1064 | -10/Materials | Discovered new exit (range 7) 1217 | -10/Materials | Discovered new exit (range 11) 1461 | -10/Materials | Discovered new exit (range 15) 1575 | -10/Materials | Entered Mines 1721 | -10/Mines | Discovered new exit (range 5) 1990 | -10/Mines | Learned location of Storage (-8) 2170 | -10/Mines | Discovered new exit (range 7) 2191 | -10/Mines | Entered Materials 2191 | -9/Materials | Evolved 2 slots: Propulsion x1, Weapon x1 2592 | -9/Materials | Discovered new exit (range 16) 2735 | -9/Materials | Build established: Scavenger-Tank 2736 | -9/Materials | Discovered new exit (range 8) 2979 | -9/Materials | Repaired Hvy. Assault Rifle 3373 | -9/Materials | Discovered new exit (range 8) 3917 | -9/Materials | Discovered new exit (range 8) 3955 | -9/Materials | Build established: Tank 4298 | -9/Materials | Build established: Scavenger-Tank 4437 | -9/Materials | Entered Mines 4438 | -9/Mines | Assembled infested the area 4443 | -9/Mines | Assisted by a Guerilla fighting off Assembled 4464 | -9/Mines | Self-destructed Last Messages --------------- 04447_ as-93127 destroyed. 04448_ U-05 Engineer destroyed. 04453_ as-64979 destroyed. 04453_ HV Slug penetrates as-82444. 04453_ as-82444 suffers critical hit (Destroy). 04453_ as-82444 knocked back. 04453_ HV Slug penetrates Wall. 04453_ HV Slug penetrates as-82444. 04454_ The unstable cave ceiling collapses. 04455_ as-84231 destroyed. 04455_ as-22739 destroyed. 04455_ as-82444 destroyed. 04457_ The unstable cave ceiling collapses. 04457_ X4-JHA(h) destroyed. 04458_ as-39548 destroyed. 04460_ The unstable cave ceiling collapses. 04460_ K-01 Serf collects debris. 04463_ D-53 Grenadier destroyed. 04463_ K-01 Serf cleans the Seismic Survey Station. 04464_ K-01 Serf collects debris. Map ----- +----------------------------------------------------+ | ??????????????????????????????????????????? | | ??????????????????????????????????????????? | | ??????????????????????????????????????????? | | ??????????????????????????????????????????? | | ??????????????????????????????????????????? | | ??????????????????????????????????????????? | | ??????????????????????????????????????????? | | ??????????????????????????????????????????? | | ??????????????????????????????????????????? | | ??????????????????????????????????????????? | | ??????????????????????????????????????????? | | ???????????????????? ?????????????????????? | | ???????????????????? ?????????????????????? | | ???????????????????? ?????????????????????? | | ???????????????????? ??? """ ?????????????? | | ???????????????????? k ??????????????? | | ???????????????????? """ ???????????????? | | ???????????????????? """ ????????????????? | | ???????????????????? """ ?????????????????? | | ???????????????????? ??????????????????? | | ?????????????????#### %#?## # #k###???????? | | ??????????????#### # # ##??????? | | ???????# ##### % ?????? | | ???????# $ d ?????? | | ???????# % ?????? | | ?????????????# @ ????????? | | ?????????????# #???????? | | ?????????????# %] #????????? | | ?????????????## ##?????????? | | ??????????????## # ?????????? | | ??????????????# ##?????????????? | | ??????????? ##??????????????? | | ?????????# ## ##???????????????? | | ????????? ######????????????????? | | ????????? #?????????????????????? | | ????????## ## ##?????????????????????? | | ?????????######?###???????????????????????? | | ??????????????????????????????????????????? | | ??????????????????????????????????????????? | | ??????????????????????????????????????????? | | ??????????????????????????????????????????? | | ??????????????????????????????????????????? | | ??????????????????????????????????????????? | | ??????????????????????????????????????????? | | ??????????????????????????????????????????? | | ??????????????????????????????????????????? | | ??????????????????????????????????????????? | | ??????????????????????????????????????????? | | ??????????????????????????????????????????? | | ??????????????????????????????????????????? | +----------------------------------------------------+ Best States ------------- Heat Dissipation 28 Energy Generation 14 Energy Capacity 280 Matter Stores 300 Matter Capacity 300 Sight Range 16 Terrain Scan Range 16 Terrain Scan Density 10 Armor Coverage 150 Core Shielding 20 Evasion (%) 55 Recoil Reduction 3 Item Schematics ----------------- None Robot Schematics ------------------ None Fabricated ------------ Nothing Alien Tech Used ----------------- None Achievements -------------- None Challenges ------------ None Game ------ Seed MissileNullBlaster Manual? 0 Play Time 00:30:29 Cumulative 319.7 hours Start 2022.02.05 @ 06:01:42 End 2022.02.05 @ 06:32:51 Sessions 1 Manual Loads 0 Difficulty Rogue Special Mode None Game No. 129 Rogue 129 Adventurer 0 Explorer 0 Win Type - Total 6 Types 1/2/1/0/0/2/0/0/0 Lore% 58 Gallery% 61 Achievement% 59 Wizard Run 0 Options --------- ASCII 0 Keyboard 1 Movement Vi Keybinds 0 Fullscreen 2 Font 12/Smallcaps Map View 60x54 Tactical HUD 1 Map Filters NONE Filters NONE Steam 1 RUN: c2fa567a-2d1c-4bec-be6b-585fa6f77300